Name,Sub Group,Service Area ,Expense Type,Narrative,Date,Transaction No,Amount,Supplier Name,Supplier Ref,Period,Year
Allerdale Borough Council,15600,Supplies & Services,Electoral Registration,Budget-Postal Services,01/10/2014,94541,288.62,PRINT IMAGE NETWORK LIMITED (POSTAGE),A01782,7,2014
Allerdale Borough Council,15600,Supplies & Services,Electoral Registration,Budget-Postal Services,01/10/2014,94542,2091.86,PRINT IMAGE NETWORK LIMITED (POSTAGE),A01782,7,2014
Allerdale Borough Council,15600,Supplies & Services,Electoral Registration,Budget-Postal Services,01/10/2014,94543,597.87,PRINT IMAGE NETWORK LIMITED (POSTAGE),A01782,7,2014
Allerdale Borough Council,15600,Supplies & Services,Electoral Registration,Budget-Postal Services,01/10/2014,94544,1272.44,PRINT IMAGE NETWORK LIMITED (POSTAGE),A01782,7,2014
Allerdale Borough Council,15301,Supplies & Services,Asset Management Pay Group,Uniforms,01/10/2014,94545,16.39,ARCO LIMITED - CARLISLE,A01448,7,2014
Allerdale Borough Council,10501,Employee Costs,Corporate Recruitment,Advertising Vacancies,01/10/2014,94546,2125,HAYMARKET MEDIA GROUP,A01318,7,2014
Allerdale Borough Council,15803,Supplies & Services,New IT Initiatives,Hardware Purchase,01/10/2014,94547,7733.4,NETCENTRIX LIMITED,A00106,7,2014
Allerdale Borough Council,15501,Supplies & Services,Food and Occupational Health,Consultants Fees,01/10/2014,94548,126.4,MILLCROFT VETERINARY GROUP,A00211,7,2014
Allerdale Borough Council,33124,Income,Carnegie Theatre,Bar Hire - Functions Income,01/10/2014,94549,50,CUMBRIA CC,A00066,7,2014
Allerdale Borough Council,81602,Balance Sheet,General Fund,Prov-Insurance Excess (Balance Sheet),29/10/2014,94550,12412.12,MICHAEL LEWIN SOLICITORS,M00630,7,2014
Allerdale Borough Council,15501,Supplies & Services,Revenue,Consultants Fees,01/10/2014,94551,10,HMCTS,M00432,7,2014
Allerdale Borough Council,16350,Supplies & Services,Homelessness,Miscellaneous Expenses,01/10/2014,94552,425,DOBIES CUMBRIA COMPUTER SERVICES,M00629,7,2014
Allerdale Borough Council,70104,VAT,Input VAT,VAT - 20%,01/10/2014,94553,737.13,Redacted information - included personal information ,M00628,7,2014
Allerdale Borough Council,15501,Supplies & Services,Revenue,Consultants Fees,01/10/2014,94554,35,Redacted information - included personal information ,M00627,7,2014
Allerdale Borough Council,26000,Earmarked Reserves,Anti Poverty,Budget-Expd funded from Reserve,01/10/2014,94555,7500,ALLERDALE DISABILITY ASSOC,M00270,7,2014
Allerdale Borough Council,26000,Earmarked Reserves,Anti Poverty,Budget-Expd funded from Reserve,01/10/2014,94556,7500,WEST CUMBRIA TRADES HALL,M00271,7,2014
Allerdale Borough Council,20111,Third Party Payments,Grants to Voluntary Organisation,Voluntary Organisations,08/10/2014,94557,17241.5,CUMBRIA LAW CENTRE,A01446,7,2014
Allerdale Borough Council,20111,Third Party Payments,Grants to Voluntary Organisation,Voluntary Organisations,08/10/2014,94558,16250,CITIZENS ADVICE BUREAU,A01181,7,2014
Allerdale Borough Council,70104,VAT,Input VAT,VAT - 20%,01/10/2014,94559,4279.7,WADAMS,A01476,7,2014
Allerdale Borough Council,34150,Income,Insurances,General Recovery of Other Costs-Income,01/10/2014,94560,6638.67,CARLISLE LEISURE LTD,A00136,7,2014
Allerdale Borough Council,15514,Supplies & Services,Carnegie Theatre,Public Entertainment,01/10/2014,94561,435,ALLERDALE BOROUGH COUNCIL - CARNEGIE,X00215,7,2014
Allerdale Borough Council,33150,Income,Tenanted Properties,Other Fees Income,01/10/2014,94562,503.47,THE ALLERDALE CREDIT UNION,A00493,7,2014
Allerdale Borough Council,54105,Capital Expenditure,Disabled Facilities Grants,Grants  Private Individuals (Capital),01/10/2014,94563,474,WHINBARROW DESIGN SERVICES,A00311,7,2014
Allerdale Borough Council,54105,Capital Expenditure,Disabled Facilities Grants,Grants  Private Individuals (Capital),01/10/2014,94564,450,CONISTON CONSULTANTS LTD,X00210,7,2014
Allerdale Borough Council,15101,Supplies & Services,Community Safety,Equipment Costs,08/10/2014,94565,845,DEFIBSHOP,A02054,7,2014
Allerdale Borough Council,15500,Supplies & Services,Disposal of Allerdale Sites,Budget-Services,15/10/2014,94566,1021.5,HESKETH ECOLOGY,A01999,7,2014
Allerdale Borough Council,15500,Supplies & Services,Disposal of Allerdale Sites,Budget-Services,15/10/2014,94567,1163.8,HESKETH ECOLOGY,A01999,7,2014
Allerdale Borough Council,14105,Transport,Solway AONB Other Projects,"Fuel, Lubricants & Consumables",01/10/2014,94568,100,ISS WATERERS LANDSCAPE,C00044,7,2014
Allerdale Borough Council,15101,Supplies & Services,Corporate Property Maintenance,Equipment Costs,15/10/2014,94569,119.94,ARCO LIMITED - CARLISLE,A01448,7,2014
Allerdale Borough Council,10401,Employee Costs,IT - New Initiatives,Agency Staff Costs,22/10/2014,94570,1137.5,HAYS SPECIALIST RECRUITMENT LTD,A00280,7,2014
Allerdale Borough Council,12301,Premises,Corporate Property Maintenance,Security,01/10/2014,94571,285.5,PRO-TEC SYSTEMS,C00026,7,2014
Allerdale Borough Council,16150,Supplies & Services,Solway Wetlands Project,General Promotions,01/10/2014,94572,300,SARAHS KITCHEN,A02079,7,2014
Allerdale Borough Council,12101,Premises,Corporate Property Maintenance,External Maintenance & Decoration,08/10/2014,94573,140,FIRTH FABRICATION SERVICES,C00020,7,2014
Allerdale Borough Council,16004,Supplies & Services,Banking and Interest,All Pay Transaction Costs,01/10/2014,94574,17.93,ALLPAY.NET LIMITED,A00714,7,2014
Allerdale Borough Council,16004,Supplies & Services,Banking and Interest,All Pay Transaction Costs,01/10/2014,94575,28.32,ALLPAY.NET LIMITED,A00714,7,2014
Allerdale Borough Council,16004,Supplies & Services,Banking and Interest,All Pay Transaction Costs,01/10/2014,94576,46.44,ALLPAY.NET LIMITED,A00714,7,2014
Allerdale Borough Council,16004,Supplies & Services,Banking and Interest,All Pay Transaction Costs,01/10/2014,94577,35.28,ALLPAY.NET LIMITED,A00714,7,2014
Allerdale Borough Council,16004,Supplies & Services,Banking and Interest,All Pay Transaction Costs,01/10/2014,94578,18.79,ALLPAY.NET LIMITED,A00714,7,2014
Allerdale Borough Council,16004,Supplies & Services,Banking and Interest,All Pay Transaction Costs,01/10/2014,94579,26.37,ALLPAY.NET LIMITED,A00714,7,2014
Allerdale Borough Council,16004,Supplies & Services,Banking and Interest,All Pay Transaction Costs,01/10/2014,94580,18.37,ALLPAY.NET LIMITED,A00714,7,2014
Allerdale Borough Council,16004,Supplies & Services,Banking and Interest,All Pay Transaction Costs,01/10/2014,94581,24.5,ALLPAY.NET LIMITED,A00714,7,2014
Allerdale Borough Council,16004,Supplies & Services,Banking and Interest,All Pay Transaction Costs,01/10/2014,94582,1363.6,ALLPAY.NET LIMITED,A00714,7,2014
Allerdale Borough Council,16004,Supplies & Services,Banking and Interest,All Pay Transaction Costs,01/10/2014,94583,20.54,ALLPAY.NET LIMITED,A00714,7,2014
Allerdale Borough Council,16004,Supplies & Services,Banking and Interest,All Pay Transaction Costs,01/10/2014,94584,20.43,ALLPAY.NET LIMITED,A00714,7,2014
Allerdale Borough Council,16004,Supplies & Services,Banking and Interest,All Pay Transaction Costs,01/10/2014,94585,18.37,ALLPAY.NET LIMITED,A00714,7,2014
Allerdale Borough Council,16004,Supplies & Services,Banking and Interest,All Pay Transaction Costs,01/10/2014,94586,60.47,ALLPAY.NET LIMITED,A00714,7,2014
Allerdale Borough Council,16004,Supplies & Services,Banking and Interest,All Pay Transaction Costs,01/10/2014,94587,1549.18,ALLPAY.NET LIMITED,A00714,7,2014
Allerdale Borough Council,16004,Supplies & Services,Banking and Interest,All Pay Transaction Costs,01/10/2014,94588,37.08,ALLPAY.NET LIMITED,A00714,7,2014
Allerdale Borough Council,16004,Supplies & Services,Banking and Interest,All Pay Transaction Costs,01/10/2014,94589,26.69,ALLPAY.NET LIMITED,A00714,7,2014
Allerdale Borough Council,16004,Supplies & Services,Banking and Interest,All Pay Transaction Costs,01/10/2014,94590,19.23,ALLPAY.NET LIMITED,A00714,7,2014
Allerdale Borough Council,16004,Supplies & Services,Banking and Interest,All Pay Transaction Costs,01/10/2014,94591,22.7,ALLPAY.NET LIMITED,A00714,7,2014
Allerdale Borough Council,16004,Supplies & Services,Banking and Interest,All Pay Transaction Costs,01/10/2014,94592,18.37,ALLPAY.NET LIMITED,A00714,7,2014
Allerdale Borough Council,16004,Supplies & Services,Banking and Interest,All Pay Transaction Costs,01/10/2014,94593,26.22,ALLPAY.NET LIMITED,A00714,7,2014
Allerdale Borough Council,16004,Supplies & Services,Banking and Interest,All Pay Transaction Costs,01/10/2014,94594,17.93,ALLPAY.NET LIMITED,A00714,7,2014
Allerdale Borough Council,16004,Supplies & Services,Banking and Interest,All Pay Transaction Costs,01/10/2014,94595,1590.01,ALLPAY.NET LIMITED,A00714,7,2014
Allerdale Borough Council,16004,Supplies & Services,Banking and Interest,All Pay Transaction Costs,01/10/2014,94596,39.08,ALLPAY.NET LIMITED,A00714,7,2014
Allerdale Borough Council,16004,Supplies & Services,Banking and Interest,All Pay Transaction Costs,01/10/2014,94597,38.76,ALLPAY.NET LIMITED,A00714,7,2014
Allerdale Borough Council,16004,Supplies & Services,Banking and Interest,All Pay Transaction Costs,01/10/2014,94598,53.91,ALLPAY.NET LIMITED,A00714,7,2014
Allerdale Borough Council,16004,Supplies & Services,Banking and Interest,All Pay Transaction Costs,01/10/2014,94599,19.23,ALLPAY.NET LIMITED,A00714,7,2014
Allerdale Borough Council,16004,Supplies & Services,Banking and Interest,All Pay Transaction Costs,01/10/2014,94600,19.56,ALLPAY.NET LIMITED,A00714,7,2014
Allerdale Borough Council,16004,Supplies & Services,Banking and Interest,All Pay Transaction Costs,01/10/2014,94601,667.5,ALLPAY.NET LIMITED,A00714,7,2014
Allerdale Borough Council,54105,Capital Expenditure,Disabled Facilities Grants,Grants  Private Individuals (Capital),01/10/2014,94602,474,WHINBARROW DESIGN SERVICES,A00311,7,2014
Allerdale Borough Council,51101,Capital Expenditure,Sale Of Buildings,External Contractor Payments (Capital),01/10/2014,94603,25000,SINTONS LLP,A02084,7,2014
Allerdale Borough Council,12405,Premises,Multi-storey Car Park,Rentals and Lease Charges,01/10/2014,94604,62602.2,SCOOP AM LLP,A02086,7,2014
Allerdale Borough Council,21150,Transfer Payments,Festivals & Events,General Grants,08/10/2014,94605,500,COCKERMOUTH GFOG,M00631,7,2014
Allerdale Borough Council,21150,Transfer Payments,Festivals & Events,General Grants,08/10/2014,94606,50,KESWICK TOWN COUNCIL,A00253,7,2014
Allerdale Borough Council,33101,Income,Pest Control,Charges for Services General Income,08/10/2014,94607,45.99,Redacted information - included personal information ,M00632,7,2014
Allerdale Borough Council,10401,Employee Costs,Planning and Development,Agency Staff Costs,08/10/2014,94608,472.49,ADECCO RECRUITMENT,A00188,7,2014
Allerdale Borough Council,15501,Supplies & Services,Planning and Development,Consultants Fees,08/10/2014,94609,347.5,CAPITA (TREE/HEDGEROWS),A00683,7,2014
Allerdale Borough Council,15506,Supplies & Services,KMAG Enhancement Activity,Professional Services,08/10/2014,94610,1935,LCR SYSTEMS LIMITED,A01998,7,2014
Allerdale Borough Council,16150,Supplies & Services,Solway AONB Other Projects,General Promotions,22/10/2014,94611,97.75,CARRS BILLINGTON AGRICULTURE,A00884,7,2014
Allerdale Borough Council,15813,Supplies & Services,IT Services,Software Miscellaneous,22/10/2014,94612,1640,HP INFORMATION SECURITY UK LTD,A01227,7,2014
Allerdale Borough Council,15403,Supplies & Services,Internal Audit Pay Group,Publications and Periodicals,08/10/2014,94613,100,CIPFA,A00572,7,2014
Allerdale Borough Council,20150,Third Party Payments,Carnegie Theatre,General Partnership Service Fees,08/10/2014,94614,150,THE REDHOUSE (WORKINGTON) LTD PM SECURITY,A01942,7,2014
Allerdale Borough Council,16150,Supplies & Services,Arts Development,General Promotions,08/10/2014,94615,350,CUMBRIA CC ,A00066,7,2014
Allerdale Borough Council,16150,Supplies & Services,Solway Wetlands Project,General Promotions,08/10/2014,94616,1107,A-FRAME JOINERY,C00149,7,2014
Allerdale Borough Council,15514,Supplies & Services,Carnegie Theatre,Public Entertainment,14/10/2014,94617,87.22,BOOKER CASH & CARRY ,A01419,7,2014
Allerdale Borough Council,14101,Transport,Mayoral Services,Vehicle Leasing,08/10/2014,94618,50,ACE TAXIS,A01927,7,2014
Allerdale Borough Council,14101,Transport,Mayoral Services,Vehicle Leasing,15/10/2014,94619,30,ACE TAXIS,A01927,7,2014
Allerdale Borough Council,14101,Transport,Mayoral Services,Vehicle Leasing,08/10/2014,94620,30,ACE TAXIS,A01927,7,2014
Allerdale Borough Council,14100,Transport,Mayoral Services,Budget-Council Vehicles (Non-capital),08/10/2014,94621,10,ACE TAXIS,A01927,7,2014
Allerdale Borough Council,14101,Transport,Mayoral Services,Vehicle Leasing,15/10/2014,94622,50,ACE TAXIS,A01927,7,2014
Allerdale Borough Council,16150,Supplies & Services,Solway Wetlands Project,General Promotions,08/10/2014,94623,41.97,VIKING DIRECT,A00828,7,2014
Allerdale Borough Council,15500,Supplies & Services,Licensing Service,Budget-Services,08/10/2014,94624,72,ORBIS PROTECT LTD (PREV SITEXORBIS LIMITED),A00679,7,2014
Allerdale Borough Council,15500,Supplies & Services,Communications and Marketing,Budget-Services,08/10/2014,94625,1954,ELSWORTH COMMUNICATIONS,A01869,7,2014
Allerdale Borough Council,15810,Supplies & Services,IT Services,Software Licences,15/10/2014,94626,14.37,PHOENIX SOFTWARE LTD,A00229,7,2014
Allerdale Borough Council,15810,Supplies & Services,IT Services,Software Licences,15/10/2014,94627,30.17,PHOENIX SOFTWARE LTD,A00229,7,2014
Allerdale Borough Council,10202,Employee Costs,Human Resources Pay Group,Medical Screening,22/10/2014,94628,32.96,WELLWORK LTD,A00029,7,2014
Allerdale Borough Council,10202,Employee Costs,Human Resources Pay Group,Medical Screening,22/10/2014,94629,32.96,WELLWORK LTD,A00029,7,2014
Allerdale Borough Council,16150,Supplies & Services,Solway AONB Other Projects,General Promotions,15/10/2014,94630,24.96,ARCO LIMITED - CARLISLE,A01448,7,2014
Allerdale Borough Council,14101,Transport,Mayoral Services,Vehicle Leasing,08/10/2014,94631,180,ACE TAXIS,A01927,7,2014
Allerdale Borough Council,16150,Supplies & Services,Solway Wetlands Project,General Promotions,08/10/2014,94632,1395.52,CONISTON CORPORATE EMBROIDERY,A01995,7,2014
Allerdale Borough Council,14104,Transport,Domestic Waste,Repairs & Maintenance,08/10/2014,94633,9.37,HI-Q TYRESERVICES,A00313,7,2014
Allerdale Borough Council,15550,Supplies & Services,Licensing Service,General-Service Related Fees,08/10/2014,94634,72,ORBIS PROTECT LTD (PREV SITEXORBIS LIMITED),A00679,7,2014
Allerdale Borough Council,10401,Employee Costs,Carnegie Theatre,Agency Staff Costs,08/10/2014,94635,360.45,ADECCO RECRUITMENT,A00188,7,2014
Allerdale Borough Council,15808,Supplies & Services,Document Management Pay Group,Computer Consumables,22/10/2014,94636,31.99,INSIGHT DIRECT (UK) LTD,A00054,7,2014
Allerdale Borough Council,15501,Supplies & Services,Street Cleansing,Consultants Fees,08/10/2014,94637,18.9,DUNDAS CHEMICAL CO (MOSSPARK),A00175,7,2014
Allerdale Borough Council,12302,Premises,Carnegie Theatre,Building Cleaning,08/10/2014,94638,243.33,CATERITE FOOD & WINE SERVICE,A00210,7,2014
Allerdale Borough Council,10401,Employee Costs,Carnegie Theatre,Agency Staff Costs,08/10/2014,94639,607.5,ADECCO RECRUITMENT,A00188,7,2014
Allerdale Borough Council,15804,Supplies & Services,Shared ICT Costs,Computer Data Lines B.T.,08/10/2014,94640,23632.5,VODAFONE (PREV CABLE & WIRELESS),A00934,7,2014
Allerdale Borough Council,15507,Supplies & Services,Shared Revs & Bens,Searches,08/10/2014,94641,104241.67,CARLISLE CITY COUNCIL,A00161,7,2014
Allerdale Borough Council,15704,Supplies & Services,IT Services,Mobile Phones,08/10/2014,94642,1107.93,VODAFONE ,A00551,7,2014
Allerdale Borough Council,12402,Premises,Corporate Property Maintenance,Electricity,08/10/2014,94643,32.31,EON,X00016,7,2014
Allerdale Borough Council,12302,Premises,Carnegie Theatre,Building Cleaning,08/10/2014,94644,-7.45,CATERITE FOOD & WINE SERVICE,A00210,7,2014
Allerdale Borough Council,15808,Supplies & Services,Document Management Pay Group,Computer Consumables,22/10/2014,94645,164.95,INSIGHT DIRECT (UK) LTD,A00054,7,2014
Allerdale Borough Council,15808,Supplies & Services,Document Management Pay Group,Computer Consumables,22/10/2014,94646,31.99,INSIGHT DIRECT (UK) LTD,A00054,7,2014
Allerdale Borough Council,73102,Holding and Control Accounts,Allerdale House Tea Fund,Holding Accounts General - Expenditure,15/10/2014,94647,163.2,TELK LTD,A01670,7,2014
Allerdale Borough Council,15507,Supplies & Services,Land Charges Service,Searches,08/10/2014,94648,1960,CUMBRIA CC,A00066,7,2014
Allerdale Borough Council,15550,Supplies & Services,Carnegie Theatre,General-Service Related Fees,22/10/2014,94649,29.52,TICKETS.COM LTD,A00371,7,2014
Allerdale Borough Council,12302,Premises,Carnegie Theatre,Building Cleaning,08/10/2014,94650,72,POLY PACK (CUMBRIA) LTD,A00230,7,2014
Allerdale Borough Council,20150,Third Party Payments,Footways,General Partnership Service Fees,08/10/2014,94651,950,FIRTH FABRICATION SERVICES,C00020,7,2014
Allerdale Borough Council,20150,Third Party Payments,Footways,General Partnership Service Fees,08/10/2014,94652,550,FIRTH FABRICATION SERVICES,C00020,7,2014
Allerdale Borough Council,12203,Premises,Public Convenience Cleaning,Plumbing and Heating Maintenance,08/10/2014,94653,1796,Redacted information - included personal information ,C00008,7,2014
Allerdale Borough Council,12201,Premises,Corporate Property Maintenance,Internal Maintenance,22/10/2014,94654,880,BARRIE HAIGH PAINTING CONTRACTOR,A01607,7,2014
Allerdale Borough Council,12101,Premises,Corporate Property Maintenance,External Maintenance & Decoration,22/10/2014,94655,160,W G MACKAY LTD,A01711,7,2014
Allerdale Borough Council,15500,Supplies & Services,Disposal of Allerdale Sites,Budget-Services,22/10/2014,94656,900,MACDONALD & COMPANY FREELANCE LTD,A01947,7,2014
Allerdale Borough Council,12201,Premises,Corporate Property Maintenance,Internal Maintenance,08/10/2014,94657,540,DERWENT FLOORING & CEILING CO,C00041,7,2014
Allerdale Borough Council,15501,Supplies & Services,Environmental Protection,Consultants Fees,22/10/2014,94658,471.6,UNITED UTILITIES PLC,A01657,7,2014
Allerdale Borough Council,15403,Supplies & Services,Chief Executive,Publications and Periodicals,15/10/2014,94659,8,P & D NEWSAGENTS,A00237,7,2014
Allerdale Borough Council,15202,Supplies & Services,Carnegie Theatre,Bar Provision,08/10/2014,94660,11.84,SOLWAY HEATERS LTD,A00305,7,2014
Allerdale Borough Council,16150,Supplies & Services,Solway Wetlands Project,General Promotions,22/10/2014,94661,27.58,YORKSHIRE PURCHASING ORGANISATION,A00747,7,2014
Allerdale Borough Council,15514,Supplies & Services,Carnegie Theatre,Public Entertainment,08/10/2014,94662,30,Redacted information - included personal information ,A01266,7,2014
Allerdale Borough Council,20150,Third Party Payments,Footways,General Partnership Service Fees,08/10/2014,94663,260,Redacted information - included personal information ,A00242,7,2014
Allerdale Borough Council,15508,Supplies & Services,Director of Operations,Subscriptions,29/10/2014,94664,203,SOLACE,A01802,7,2014
Allerdale Borough Council,10401,Employee Costs,IT - New Initiatives,Agency Staff Costs,29/10/2014,94665,975,HAYS SPECIALIST RECRUITMENT LTD,A00280,7,2014
Allerdale Borough Council,21150,Transfer Payments,Festivals & Events,General Grants,08/10/2014,94666,450,COCKERMOUTH CHAMBER OF TRADE,A01807,7,2014
Allerdale Borough Council,33112,Income,Planning and Development,Planning Fees Income,08/10/2014,94667,28,Redacted information - included personal information ,M00633,7,2014
Allerdale Borough Council,33112,Income,Planning and Development,Planning Fees Income,08/10/2014,94668,172,Redacted information - included personal information ,M00634,7,2014
Allerdale Borough Council,33101,Income,Domestic Waste,Charges for Services General Income,08/10/2014,94669,18.26,Redacted information - included personal information ,M00635,7,2014
Allerdale Borough Council,15502,Supplies & Services,Legal Services,Land Registry Fees,,94670,33,HM LAND REGISTRY,A00505,7,2014
Allerdale Borough Council,15502,Supplies & Services,Legal Services,Land Registry Fees,,94671,37,HM LAND REGISTRY,A00505,7,2014
Allerdale Borough Council,10401,Employee Costs,Head of Governance,Agency Staff Costs,08/10/2014,94672,216.16,VENN GROUP,A01836,7,2014
Allerdale Borough Council,10401,Employee Costs,Head of Governance,Agency Staff Costs,08/10/2014,94673,199.41,VENN GROUP,A01836,7,2014
Allerdale Borough Council,10401,Employee Costs,Head of Governance,Agency Staff Costs,08/10/2014,94674,133.17,VENN GROUP,A01836,7,2014
Allerdale Borough Council,10401,Employee Costs,Head of Governance,Agency Staff Costs,08/10/2014,94675,103.53,VENN GROUP,A01836,7,2014
Allerdale Borough Council,10401,Employee Costs,Head of Governance,Agency Staff Costs,08/10/2014,94676,206.51,VENN GROUP,A01836,7,2014
Allerdale Borough Council,15501,Supplies & Services,Food and Occupational Health,Consultants Fees,22/10/2014,94677,426.46,LEASE CONFERENCES LTD,A02070,7,2014
Allerdale Borough Council,15404,Supplies & Services,Building Control - Chargeable,Reference Materials,22/10/2014,94678,324.45,LEXISNEXIS BUTTERWORTHS,A00356,7,2014
Allerdale Borough Council,15501,Supplies & Services,Human Resources Pay Group,Consultants Fees,08/10/2014,94679,763.5,ADECCO RECRUITMENT,A00188,7,2014
Allerdale Borough Council,15501,Supplies & Services,Human Resources Pay Group,Consultants Fees,08/10/2014,94680,763.5,ADECCO RECRUITMENT,A00188,7,2014
Allerdale Borough Council,15501,Supplies & Services,Human Resources Pay Group,Consultants Fees,08/10/2014,94681,572.63,ADECCO RECRUITMENT,A00188,7,2014
Allerdale Borough Council,14101,Transport,Shared IT Services Pay Group,Vehicle Leasing,,94682,199,ARNOLD CLARK AUTOMOBILES LTD,A01551,7,2014
Allerdale Borough Council,15501,Supplies & Services,Human Resources Pay Group,Consultants Fees,08/10/2014,94683,763.5,ADECCO RECRUITMENT,A00188,7,2014
Allerdale Borough Council,15808,Supplies & Services,IT Services,Computer Consumables,08/10/2014,94684,13.9,INSIGHT DIRECT (UK) LTD,A00054,7,2014
Allerdale Borough Council,15501,Supplies & Services,Human Resources Pay Group,Consultants Fees,08/10/2014,94685,763.5,ADECCO RECRUITMENT,A00188,7,2014
Allerdale Borough Council,16300,Supplies & Services,Apprentices Scheme,Budget-Miscellaneous,08/10/2014,94686,7500,LAKES COLLEGE WEST CUMB,A00093,7,2014
Allerdale Borough Council,16150,Supplies & Services,Town Centre Management,General Promotions,22/10/2014,94687,502.37,FIRST IMAGE SIGNS LTD,A01840,7,2014
Allerdale Borough Council,15400,Supplies & Services,Elections,"Budget-Printing,Stationery & Office Supp",22/10/2014,94688,420,ASSOCIATION OF ELECTORAL ADMIN,A00189,7,2014
Allerdale Borough Council,12302,Premises,Solway Coast AONB Core Funding,Building Cleaning,22/10/2014,94689,104,ORIAN SOLUTIONS LTD,A01814,7,2014
Allerdale Borough Council,33113,Income,Building Control - Chargeable,Building Control Fees Income,08/10/2014,94690,60.48,Redacted information - included personal information ,M00636,7,2014
Allerdale Borough Council,15501,Supplies & Services,Food and Occupational Health,Consultants Fees,08/10/2014,94691,150.36,PUBLIC HEALTH ENGLAND,A01839,7,2014
Allerdale Borough Council,15303,Supplies & Services,Food and Occupational Health,Laundry,15/10/2014,94692,79.24,BERENDSEN UK LTD,A00027,7,2014
Allerdale Borough Council,15501,Supplies & Services,Food and Occupational Health,Consultants Fees,08/10/2014,94693,235,MP MARINE LTD,A00113,7,2014
Allerdale Borough Council,15803,Supplies & Services,IT Services,Hardware Purchase,29/10/2014,94694,518.72,INSIGHT DIRECT (UK) LTD,A00054,7,2014
Allerdale Borough Council,20305,Third Party Payments,Sports & Leisure Centres,Contract Services-Leisure Centres,08/10/2014,94695,50600,CARLISLE LEISURE LTD,A00136,7,2014
Allerdale Borough Council,20305,Third Party Payments,Maryport Wave,Contract Services-Leisure Centres,08/10/2014,94696,12500,CARLISLE LEISURE LTD,A00136,7,2014
Allerdale Borough Council,20100,Third Party Payments,Museums,Budget-Partnership Services,08/10/2014,94697,7500,WORKINGTON HERITAGE GROUP LTD,A00339,7,2014
Allerdale Borough Council,12403,Premises,Homelessness,Gas,29/10/2014,94698,82,MEPOS LIMITED,A01286,7,2014
Allerdale Borough Council,10401,Employee Costs,Elections,Agency Staff Costs,22/10/2014,94699,1904,SELLICK PARTNERSHIP,A01993,7,2014
Allerdale Borough Council,10401,Employee Costs,Housing Services Pay Group,Agency Staff Costs,08/10/2014,94700,836.43,TEDGEM INVESTMENTS LTD,A01962,7,2014
Allerdale Borough Council,15401,Supplies & Services,Document Management Pay Group,General Stationery,29/10/2014,94701,199,ANTALIS,A00122,7,2014
Allerdale Borough Council,15501,Supplies & Services,Food and Occupational Health,Consultants Fees,08/10/2014,94702,59.79,BEACON VETERINARY CENTRE,A00708,7,2014
Allerdale Borough Council,15401,Supplies & Services,Document Management Pay Group,General Stationery,29/10/2014,94703,254.88,LYRECO,A00043,7,2014
Allerdale Borough Council,15401,Supplies & Services,Document Management Pay Group,General Stationery,29/10/2014,94704,330.9,LYRECO,A00043,7,2014
Allerdale Borough Council,15550,Supplies & Services,Out of Hours Telephones,General-Service Related Fees,29/10/2014,94705,603.2,ORBIS PROTECT LTD (PREV SITEXORBIS LIMITED),A00679,7,2014
Allerdale Borough Council,15802,Supplies & Services,IT Services,Hardware Maintenance,29/10/2014,94706,9816,INTEROUTE (previously Quantix),A00195,7,2014
Allerdale Borough Council,15850,Supplies & Services,Carnegie Theatre,General Computer Costs,29/10/2014,94707,99.11,COOLSPIRIT LTD,A01085,7,2014
Allerdale Borough Council,14202,Transport,Members Services,Hire Car and petrol,08/10/2014,94708,180,KEN ROUTLEDGE TRAVEL LTD,A00192,7,2014
Allerdale Borough Council,14202,Transport,Members Services,Hire Car and petrol,08/10/2014,94709,450,KEN ROUTLEDGE TRAVEL LTD,A00192,7,2014
Allerdale Borough Council,15802,Supplies & Services,IT Services,Hardware Maintenance,05/11/2014,94710,3763.12,NETCENTRIX LIMITED,A00106,7,2014
Allerdale Borough Council,14150,Transport,Gates Travel,General-Council Vehicles (Non-Capital),29/10/2014,94711,786.11,GATES TRAVEL,A01525,7,2014
Allerdale Borough Council,15401,Supplies & Services,Document Management Pay Group,General Stationery,29/10/2014,94712,436.01,LYRECO,A00043,7,2014
Allerdale Borough Council,15103,Supplies & Services,Environmental Protection,Purchase of Materials,29/10/2014,94713,74,GAS DATA LTD,A00378,7,2014
Allerdale Borough Council,16150,Supplies & Services,Festivals & Events,General Promotions,08/10/2014,94714,114,FIRPRESS PRINTERS,A00063,7,2014
Allerdale Borough Council,16150,Supplies & Services,Festivals & Events,General Promotions,08/10/2014,94715,95,FIRPRESS PRINTERS,A00063,7,2014
Allerdale Borough Council,73102,Holding and Control Accounts,Busy Bees Childcare Scheme,Holding Accounts General - Expenditure,15/10/2014,94716,55.33,COMPUTERSHARE VOUCHER SERVICES,A00991,7,2014
Allerdale Borough Council,73102,Holding and Control Accounts,Busy Bees Childcare Scheme,Holding Accounts General - Expenditure,15/10/2014,94717,1006,COMPUTERSHARE VOUCHER SERVICES,A00991,7,2014
Allerdale Borough Council,52106,Capital Expenditure,KMAG Enhancement Activity,Consultants Fees (Capital),29/10/2014,94718,1200,KAVENEY HR SOLUTIONS LIMITED,A02027,7,2014
Allerdale Borough Council,12201,Premises,KMAG Enhancement Activity,Internal Maintenance,08/10/2014,94719,30,MCKANES PRINTERS,A01507,7,2014
Allerdale Borough Council,14100,Transport,Trade Waste,Budget-Council Vehicles (Non-capital),08/10/2014,94720,35.3,HI-Q TYRESERVICES,A00313,7,2014
Allerdale Borough Council,14104,Transport,Pest Control,Repairs & Maintenance,08/10/2014,94721,103,HI-Q TYRESERVICES,A00313,7,2014
Allerdale Borough Council,15512,Supplies & Services,Animal Welfare,Kennelling,15/10/2014,94722,2641,WHINMILL FARM CANINE CENTRE,A00117,7,2014
Allerdale Borough Council,15404,Supplies & Services,Finance and Accounting Pay Group,Reference Materials,08/10/2014,94723,710,CIPFA,A00572,7,2014
Allerdale Borough Council,12103,Premises,Small Blue Butterfly Project,Grounds Maintenance,29/10/2014,94724,250,SCOTTS WILDFLOWERS,A01937,7,2014
Allerdale Borough Council,15102,Supplies & Services,Domestic Waste,Equipment Repair & Maintenance,08/10/2014,94725,712.5,Redacted information - included personal information ,A00176,7,2014
Allerdale Borough Council,15516,Supplies & Services,Insurances,Insurance Services,08/10/2014,94726,600.41,AON UK LTD,A01698,7,2014
Allerdale Borough Council,16150,Supplies & Services,Solway Wetlands Project,General Promotions,29/10/2014,94727,275.36,NHBS LIMITED,A02085,7,2014
Allerdale Borough Council,15101,Supplies & Services,Public Convenience Cleaning,Equipment Costs,08/10/2014,94728,848,INSTOCK (CHANDLERS),A00050,7,2014
Allerdale Borough Council,14104,Transport,Public Convenience Cleaning,Repairs & Maintenance,08/10/2014,94729,86.66,GOODFELLOW & SONS,A00031,7,2014
Allerdale Borough Council,16301,Supplies & Services,KMAG Enhancement Activity,Reimbursement,08/10/2014,94730,2180.16,KESWICK MUSEUM & ART GALLERY,A00337,7,2014
Allerdale Borough Council,15550,Supplies & Services,Sports Development,General-Service Related Fees,08/10/2014,94731,10697.3,CARLISLE LEISURE LTD,A00136,7,2014
Allerdale Borough Council,15103,Supplies & Services,Pest Control,Purchase of Materials,22/10/2014,94732,95.15,KILLGERM CHEMICALS LTD,A00361,7,2014
Allerdale Borough Council,15302,Supplies & Services,Parks Development,Protective Clothing,29/10/2014,94733,14.84,ARCO LIMITED,A00045,7,2014
Allerdale Borough Council,15302,Supplies & Services,Parks Development,Protective Clothing,29/10/2014,94734,90.95,ARCO LIMITED,A00045,7,2014
Allerdale Borough Council,14104,Transport,Parking Services Pay Group,Repairs & Maintenance,08/10/2014,94735,15,HI-Q TYRESERVICES,A00313,7,2014
Allerdale Borough Council,15301,Supplies & Services,Parking Services Pay Group,Uniforms,08/10/2014,94736,14.47,THOMAS ARMSTRONG - LINDEN/KAYTOOLS,A00091,7,2014
Allerdale Borough Council,12405,Premises,Customer Services Pay Group,Rentals and Lease Charges,29/10/2014,94737,591.94,SOLWAY PLAIN FUTURES LTD,A01194,7,2014
Allerdale Borough Council,12101,Premises,Public Convenience Cleaning,External Maintenance & Decoration,08/10/2014,94738,110,UNBLOCK CUMBRIA LTD,C00005,7,2014
Allerdale Borough Council,73102,Holding and Control Accounts,Allerdale House Tea Fund,Holding Accounts General - Expenditure,,94739,172.38,BOOKER CASH & CARRY,A01419,7,2014
Allerdale Borough Council,15516,Supplies & Services,Insurances,Insurance Services,29/10/2014,94740,5000,BLUEFIN INSURANCE SERVICES LTD,A01716,7,2014
Allerdale Borough Council,16102,Supplies & Services,Town Centre Management,Regeneration Initiatives,08/10/2014,94741,254,FIRPRESS PRINTERS,A00063,7,2014
Allerdale Borough Council,15302,Supplies & Services,Parks Development,Protective Clothing,29/10/2014,94742,151.84,ARCO LIMITED,A00045,7,2014
Allerdale Borough Council,12408,Premises,Corporate Property Maintenance,Water & Sewage,08/10/2014,94743,1192.8,UNITED UTILITIES ,X00011,7,2014
Allerdale Borough Council,12408,Premises,Public Convenience Cleaning,Water & Sewage,08/10/2014,94744,50.9,UNITED UTILITIES ,X00011,7,2014
Allerdale Borough Council,12408,Premises,Public Convenience Cleaning,Water & Sewage,08/10/2014,94745,315.46,UNITED UTILITIES ,X00011,7,2014
Allerdale Borough Council,12408,Premises,Public Convenience Cleaning,Water & Sewage,08/10/2014,94746,412.86,UNITED UTILITIES ,X00011,7,2014
Allerdale Borough Council,12408,Premises,Corporate Property Maintenance,Water & Sewage,08/10/2014,94747,129.97,UNITED UTILITIES ,X00011,7,2014
Allerdale Borough Council,54105,Capital Expenditure,Disabled Facilities Grants,Grants  Private Individuals (Capital),08/10/2014,94748,950,CONISTON CONSULTANTS LTD,X00210,7,2014
Allerdale Borough Council,16350,Supplies & Services,Bereavement Services,Miscellaneous Expenses,08/10/2014,94749,120,Redacted information - included personal information ,M00637,7,2014
Allerdale Borough Council,16150,Supplies & Services,Solway AONB Other Projects,General Promotions,22/10/2014,94751,-1000,WEST HOUSE,A02020,7,2014
Allerdale Borough Council,16150,Supplies & Services,Solway AONB Other Projects,General Promotions,22/10/2014,94752,1000,WEST HOUSE,A02020,7,2014
Allerdale Borough Council,15604,Supplies & Services,Document Management Pay Group,Franking Machine refills,29/10/2014,94753,106,THE MAILING ROOM (FP EXECUTIVE AGENCY LTD),A00733,7,2014
Allerdale Borough Council,15802,Supplies & Services,Parking Services Pay Group,Hardware Maintenance,22/10/2014,94754,58.08,RELIANCE HIGH-TECH LTD,C00123,7,2014
Allerdale Borough Council,12306,Premises,Corporate Property Maintenance,Legionella Inspections and Services,29/10/2014,94755,535,RENTOKIL INITIAL UK LTD - WATERSAFE,A01790,7,2014
Allerdale Borough Council,10401,Employee Costs,Carnegie Theatre,Agency Staff Costs,15/10/2014,94756,607.5,ADECCO RECRUITMENT,A00188,7,2014
Allerdale Borough Council,10601,Employee Costs,Training,External Courses & Seminar Fees,15/10/2014,94757,250,SRUC,A02076,7,2014
Allerdale Borough Council,15516,Supplies & Services,Insurances,Insurance Services,15/10/2014,94758,4412.57,AON UK LTD,A01698,7,2014
Allerdale Borough Council,15401,Supplies & Services,Animal Welfare,General Stationery,15/10/2014,94759,429,LIBERTY PRINTERS LTD,C00145,7,2014
Allerdale Borough Council,15501,Supplies & Services,Human Resources Pay Group,Consultants Fees,15/10/2014,94760,120,CUMBRIA CC ,A00066,7,2014
Allerdale Borough Council,26000,Earmarked Reserves,Anti Poverty,Budget-Expd funded from Reserve,15/10/2014,94761,37.8,AL'S KITCHEN,A00187,7,2014
Allerdale Borough Council,15501,Supplies & Services,Food and Occupational Health,Consultants Fees,22/10/2014,94762,112.77,PUBLIC HEALTH ENGLAND,A01839,7,2014
Allerdale Borough Council,54105,Capital Expenditure,Cluster of Empty Homes,Grants  Private Individuals (Capital),15/10/2014,94763,1600,Redacted information - included personal information ,X00231,7,2014
Allerdale Borough Council,14105,Transport,Parking Services Pay Group,"Fuel, Lubricants & Consumables",,94764,673.22,BP OIL UK LTD,X00022,7,2014
Allerdale Borough Council,14105,Transport,Solway Coast AONB Core Funding,"Fuel, Lubricants & Consumables",,94765,516.12,BP OIL UK LTD,X00022,7,2014
Allerdale Borough Council,14105,Transport,Parking Services Pay Group,"Fuel, Lubricants & Consumables",,94766,385.33,BP OIL UK LTD,X00022,7,2014
Allerdale Borough Council,14105,Transport,Parking Services Pay Group,"Fuel, Lubricants & Consumables",,94767,332.85,BP OIL UK LTD,X00022,7,2014
Allerdale Borough Council,16102,Supplies & Services,Supporting Allerdale Town Centres,Regeneration Initiatives,15/10/2014,94768,5000,SILLOTH TOWN COUNCIL,A00615,7,2014
Allerdale Borough Council,15501,Supplies & Services,Homelessness,Consultants Fees,15/10/2014,94769,35,Redacted information - included personal information ,A00826,7,2014
Allerdale Borough Council,14104,Transport,Parking Services Pay Group,Repairs & Maintenance,15/10/2014,94770,227.77,FCC ENVIRONMENT SERVICES (FOCSA),A00085,7,2014
Allerdale Borough Council,15808,Supplies & Services,IT Services,Computer Consumables,29/10/2014,94771,49.92,INSIGHT DIRECT (UK) LTD,A00054,7,2014
Allerdale Borough Council,15803,Supplies & Services,IT Services,Hardware Purchase,29/10/2014,94772,147.32,INSIGHT DIRECT (UK) LTD,A00054,7,2014
Allerdale Borough Council,15101,Supplies & Services,Recycling,Equipment Costs,29/10/2014,94773,1186,PLASTIC OMNIUM URBAN SYSTEMS LTD,A00159,7,2014
Allerdale Borough Council,15904,Supplies & Services,Members Services,Training,15/10/2014,94774,299,SALFORD PROFESSIONAL DEVELOPMENT LTD,A02062,7,2014
Allerdale Borough Council,20150,Third Party Payments,Multi-storey Car Park,General Partnership Service Fees,15/10/2014,94775,42708.3,PARKSAFE,A00647,7,2014
Allerdale Borough Council,10401,Employee Costs,Elections,Agency Staff Costs,15/10/2014,94776,7658.67,ASSOCIATION OF ELECTORAL ADMIN,A00189,7,2014
Allerdale Borough Council,15803,Supplies & Services,IT Services,Hardware Purchase,22/10/2014,94777,639.08,INSIGHT DIRECT (UK) LTD,A00054,7,2014
Allerdale Borough Council,14202,Transport,New Centre Development,Hire Car and petrol,22/10/2014,94778,94.39,ENTERPRISE RENT A CAR,A01367,7,2014
Allerdale Borough Council,15514,Supplies & Services,Mayor's Fund,Public Entertainment,15/10/2014,94779,8,P & D NEWSAGENTS,A00237,7,2014
Allerdale Borough Council,16302,Supplies & Services,Localities & Partnerships,Room Hire,29/10/2014,94780,52,SOLWAY PLAIN FUTURES LTD,A01194,7,2014
Allerdale Borough Council,14100,Transport,Street Cleansing,Budget-Council Vehicles (Non-capital),15/10/2014,94781,100.22,HI-Q TYRESERVICES,A00313,7,2014
Allerdale Borough Council,20150,Third Party Payments,Carnegie Theatre,General Partnership Service Fees,15/10/2014,94782,405,THE REDHOUSE (WORKINGTON) LTD PM SECURITY,A01942,7,2014
Allerdale Borough Council,12303,Premises,Corporate Property Maintenance,Window Cleaning,22/10/2014,94783,3.87,J A LEE WINDOWS,A00051,7,2014
Allerdale Borough Council,15506,Supplies & Services,Environmental Protection,Professional Services,15/10/2014,94784,-416.67,FCC ENVIRONMENT SERVICES (FOCSA),A00085,7,2014
Allerdale Borough Council,15506,Supplies & Services,Environmental Protection,Professional Services,15/10/2014,94785,416.67,FCC ENVIRONMENT SERVICES (FOCSA),A00085,7,2014
Allerdale Borough Council,73102,Holding and Control Accounts,Allerdale House Tea Fund,Holding Accounts General - Expenditure,15/10/2014,94786,273.47,ALLERDALE BOROUGH COUNCIL,X00034,7,2014
Allerdale Borough Council,15101,Supplies & Services,Off-street - Owned,Equipment Costs,15/10/2014,94787,300,Redacted information - included personal information ,M00639,7,2014
Allerdale Borough Council,15804,Supplies & Services,IT Services,Computer Data Lines B.T.,29/10/2014,94788,3087.21,VODAFONE (PREV CABLE & WIRELESS),A00934,7,2014
Allerdale Borough Council,15703,Supplies & Services,IT Services,Call Charges,22/10/2014,94789,793.61,VODAFONE (PREV CABLE & WIRELESS),A00934,7,2014
Allerdale Borough Council,15804,Supplies & Services,IT Services,Computer Data Lines B.T.,29/10/2014,94790,870.63,VODAFONE (PREV CABLE & WIRELESS),A00934,7,2014
Allerdale Borough Council,15703,Supplies & Services,Silloth TIC,Call Charges,15/10/2014,94791,49.72,BRITISH TELECOMMUNICATIONS,X00004,7,2014
Allerdale Borough Council,14202,Transport,Crime Prevention,Hire Car and petrol,15/10/2014,94792,103.94,EON ,X00016,7,2014
Allerdale Borough Council,12402,Premises,Corporate Property Maintenance,Electricity,15/10/2014,94793,239.46,N POWER ,X00015,7,2014
Allerdale Borough Council,12402,Premises,Corporate Property Maintenance,Electricity,15/10/2014,94794,3394.41,N POWER,X00015,7,2014
Allerdale Borough Council,15101,Supplies & Services,KMAG Enhancement Activity,Equipment Costs,15/10/2014,94795,217.08,KESWICK MUSEUM & ART GALLERY,A00337,7,2014
Allerdale Borough Council,12402,Premises,Car Parks Inspection & Maintenance,Electricity,15/10/2014,94796,315.35,N POWER,X00015,7,2014
Allerdale Borough Council,12402,Premises,Car Parks Inspection & Maintenance,Electricity,15/10/2014,94797,83.07,N POWER ,X00015,7,2014
Allerdale Borough Council,10401,Employee Costs,Planning and Development,Agency Staff Costs,15/10/2014,94798,472.49,ADECCO RECRUITMENT,A00188,7,2014
Allerdale Borough Council,10401,Employee Costs,Planning and Development,Agency Staff Costs,15/10/2014,94799,472.49,ADECCO RECRUITMENT,A00188,7,2014
Allerdale Borough Council,15505,Supplies & Services,Planning and Development,Licences,29/10/2014,94800,123.44,CENTREMAPS,A00512,7,2014
Allerdale Borough Council,16150,Supplies & Services,"The Hub, Workington Town Centre",General Promotions,29/10/2014,94801,175,Redacted information - included personal information ,A01408,7,2014
Allerdale Borough Council,10401,Employee Costs,Planning and Development,Agency Staff Costs,15/10/2014,94802,472.49,ADECCO RECRUITMENT,A00188,7,2014
Allerdale Borough Council,12101,Premises,Public Convenience Cleaning,External Maintenance & Decoration,15/10/2014,94803,1317,Redacted information - included personal information ,C00008,7,2014
Allerdale Borough Council,10401,Employee Costs,Housing Services Pay Group,Agency Staff Costs,15/10/2014,94804,840,TEDGEM INVESTMENTS LTD,A01962,7,2014
Allerdale Borough Council,15501,Supplies & Services,Homelessness,Consultants Fees,15/10/2014,94805,25.98,JAMES STREET GROUP PRACTICE,A00462,7,2014
Allerdale Borough Council,16302,Supplies & Services,Localities & Partnerships,Room Hire,15/10/2014,94806,25,NETHERHALL SCHOOL,A00279,7,2014
Allerdale Borough Council,15501,Supplies & Services,Food and Occupational Health,Consultants Fees,22/10/2014,94807,235,MP MARINE LTD,A00113,7,2014
Allerdale Borough Council,15550,Supplies & Services,Sports Development,General-Service Related Fees,15/10/2014,94808,948,WIGTON BATHS,A00287,7,2014
Allerdale Borough Council,10600,Employee Costs,Training,Budget-Training,22/10/2014,94809,6864,INNOVATION CENTRAL LTD,A02081,7,2014
Allerdale Borough Council,15501,Supplies & Services,Homelessness,Consultants Fees,29/10/2014,94810,25,ASPATRIA MEDICAL GROUP,A00929,7,2014
Allerdale Borough Council,15500,Supplies & Services,Human Resources Pay Group,Budget-Services,15/10/2014,94811,3553.65,Redacted information - included personal information ,A01982,7,2014
Allerdale Borough Council,10401,Employee Costs,IT - New Initiatives,Agency Staff Costs,05/11/2014,94812,975,HAYS SPECIALIST RECRUITMENT LTD,A00280,7,2014
Allerdale Borough Council,70104,VAT,VAT Control Account,VAT - 20%,15/10/2014,94813,995.17,WORKINGTON TWINNING ASSN,M00640,7,2014
Allerdale Borough Council,33150,Income,Members Services,Other Fees Income,15/10/2014,94814,115,WIGTON TOWN COUNCIL,X00099,7,2014
Allerdale Borough Council,15803,Supplies & Services,Shared IT Costs,Hardware Purchase,15/10/2014,94815,1586.66,MISCO,A00125,7,2014
Allerdale Borough Council,14101,Transport,Shared IT Services Pay Group,Vehicle Leasing,,94816,199,ARNOLD CLARK AUTOMOBILES LTD,A01551,7,2014
Allerdale Borough Council,15803,Supplies & Services,IT Services,Hardware Purchase,15/10/2014,94817,207.75,STORM TECHNOLOGIES,A01018,7,2014
Allerdale Borough Council,15400,Supplies & Services,Electoral Registration,"Budget-Printing,Stationery & Office Supp",15/10/2014,94818,25.5,FIRPRESS PRINTERS,A00063,7,2014
Allerdale Borough Council,15513,Supplies & Services,Animal Welfare,Subcontractors - General,15/10/2014,94819,62.47,MILLCROFT VETERINARY GROUP,A00211,7,2014
Allerdale Borough Council,15502,Supplies & Services,Legal Services,Land Registry Fees,15/10/2014,94820,100,HM LAND REGISTRY,A00834,7,2014
Allerdale Borough Council,15506,Supplies & Services,Legal Services,Professional Services,29/10/2014,94821,319.2,BOND DICKINSON LLP,A01933,7,2014
Allerdale Borough Council,20102,Third Party Payments,Recycling,Horticulture (Obsolete),15/10/2014,94822,2122,THOMPSONS PLANT HIRE LTD,A00262,7,2014
Allerdale Borough Council,20102,Third Party Payments,Recycling,Horticulture (Obsolete),15/10/2014,94823,25,THOMPSONS PLANT HIRE LTD,A00262,7,2014
Allerdale Borough Council,20102,Third Party Payments,Recycling,Horticulture (Obsolete),15/10/2014,94824,120,THOMPSONS PLANT HIRE LTD,A00262,7,2014
Allerdale Borough Council,20102,Third Party Payments,Recycling,Horticulture (Obsolete),15/10/2014,94825,2546,THOMPSONS PLANT HIRE LTD,A00262,7,2014
Allerdale Borough Council,10401,Employee Costs,Elections,Agency Staff Costs,05/11/2014,94826,2425,SELLICK PARTNERSHIP,A01993,7,2014
Allerdale Borough Council,20101,Third Party Payments,Recycling,Cleansing Contract,29/10/2014,94827,1016.1,CUMBRIA WASTE MANAGEMENT LTD,A01304,7,2014
Allerdale Borough Council,16301,Supplies & Services,KMAG Enhancement Activity,Reimbursement,15/10/2014,94828,205.44,KESWICK MUSEUM & ART GALLERY,A00337,7,2014
Allerdale Borough Council,81608,Balance Sheet,General Fund,Legal Provisions,29/10/2014,94829,3750,KINGS CHAMBERS,A00348,7,2014
Allerdale Borough Council,20102,Third Party Payments,Recycling,Horticulture (Obsolete),15/10/2014,94830,4182.16,FCC RECYCLING (UK) LTD (ALCO),A00185,7,2014
Allerdale Borough Council,12405,Premises,Homelessness,Rentals and Lease Charges,05/11/2014,94831,9899.37,DERWENT & SOLWAY ,A00219,7,2014
Allerdale Borough Council,20102,Third Party Payments,Recycling,Horticulture (Obsolete),15/10/2014,94832,2648.56,FCC RECYCLING (UK) LTD (ALCO),A00185,7,2014
Allerdale Borough Council,20101,Third Party Payments,Public Convenience Cleaning,Cleansing Contract,22/10/2014,94833,200,J STRONG & SON,A00209,7,2014
Allerdale Borough Council,15500,Supplies & Services,Disposal of Allerdale Sites,Budget-Services,05/11/2014,94834,450,MACDONALD & COMPANY FREELANCE LTD,A01947,7,2014
Allerdale Borough Council,12101,Premises,Workington Town Centre,External Maintenance & Decoration,15/10/2014,94836,2205,BASE STRUCTURES LTD,A01031,7,2014
Allerdale Borough Council,14105,Transport,Solway AONB Other Projects,"Fuel, Lubricants & Consumables",15/10/2014,94837,100,ISS WATERERS LANDSCAPE,C00044,7,2014
Allerdale Borough Council,15101,Supplies & Services,Footways,Equipment Costs,29/10/2014,94838,596,MAIN STREET SIGNS LIMITED,A00292,7,2014
Allerdale Borough Council,12101,Premises,Other Land & Buildings,External Maintenance & Decoration,05/11/2014,94839,1150,Redacted information - included personal information ,A01732,7,2014
Allerdale Borough Council,15506,Supplies & Services,Revs & Bens Transformation Project,Professional Services,15/10/2014,94840,3547.66,LIBERATA UK LTD,C00122,7,2014
Allerdale Borough Council,10601,Employee Costs,Electoral Registration,External Courses & Seminar Fees,,94842,420.3,HALAROSE LIMITED,A00012,7,2014
Allerdale Borough Council,12201,Premises,Homelessness,Internal Maintenance,15/10/2014,94843,590.17,DERWENT & SOLWAY ,A00219,7,2014
Allerdale Borough Council,12301,Premises,Crime Prevention,Security,15/10/2014,94844,327.5,ADT FIRE & SECURITY PLC,A00367,7,2014
Allerdale Borough Council,15601,Supplies & Services,Benefits,Postage,15/10/2014,94845,1031.1,ROYAL MAIL LETTERS,X00021,7,2014
Allerdale Borough Council,15601,Supplies & Services,Benefits,Postage,15/10/2014,94846,1251.6,ROYAL MAIL LETTERS,X00021,7,2014
Allerdale Borough Council,15501,Supplies & Services,Revenue,Consultants Fees,15/10/2014,94847,75,ROSSENDALES LTD,A00964,7,2014
Allerdale Borough Council,15702,Supplies & Services,Off-street - Owned,Line Rentals,29/10/2014,94848,394.77,COBALT TELEPHONE TECHNOLOGY,A01008,7,2014
Allerdale Borough Council,12403,Premises,Corporate Property Maintenance,Gas,15/10/2014,94849,715.88,BRITISH GAS,X00039,7,2014
Allerdale Borough Council,12402,Premises,Corporate Property Maintenance,Electricity,15/10/2014,94850,34.1,SOUTHERN ELECTRIC,X00018,7,2014
Allerdale Borough Council,12408,Premises,Corporate Property Maintenance,Water & Sewage,15/10/2014,94851,16.24,UNITED UTILITIES,X00011,7,2014
Allerdale Borough Council,15502,Supplies & Services,Legal Services,Land Registry Fees,,94852,30,HM LAND REGISTRY,A00505,7,2014
Allerdale Borough Council,10201,Employee Costs,Finance and Accounting Pay Group,Long Service Awards,15/10/2014,94853,260,Redacted information - included personal information ,M00641,7,2014
Allerdale Borough Council,54105,Capital Expenditure,Cluster of Empty Homes,Grants  Private Individuals (Capital),15/10/2014,94854,3375,Redacted information - included personal information ,X00230,7,2014
Allerdale Borough Council,54105,Capital Expenditure,Disabled Facilities Grants,Grants  Private Individuals (Capital),15/10/2014,94855,3700,TOP NOTCH CONTRACTORS LTD,X00165,7,2014
Allerdale Borough Council,54105,Capital Expenditure,Disabled Facilities Grants,Grants  Private Individuals (Capital),15/10/2014,94856,3950,DOLPHIN STAIRLIFTS CUMBRIA,X00107,7,2014
Allerdale Borough Council,54105,Capital Expenditure,Disabled Facilities Grants,Grants  Private Individuals (Capital),15/10/2014,94857,3033,JOSEPH RIDLEY BUILDERS LTD,X00124,7,2014
Allerdale Borough Council,33110,Income,Other Land & Buildings,Search & Enquiry Fees General Income,15/10/2014,94858,131,BROCKBANK SOLICITORS,A01761,7,2014
Allerdale Borough Council,33150,Income,Credit Union,Other Fees Income,15/10/2014,94859,1337,THE ALLERDALE CREDIT UNION,A00493,7,2014
Allerdale Borough Council,16102,Supplies & Services,Town Centre Management,Regeneration Initiatives,15/10/2014,94860,700,COCKERMOUTH CHAMBER OF TRADE,A01807,7,2014
Allerdale Borough Council,16150,Supplies & Services,Carnegie Theatre,General Promotions,15/10/2014,94861,79.9,ALLERDALE BOROUGH COUNCIL - CARNEGIE,X00215,7,2014
Allerdale Borough Council,15812,Supplies & Services,IT Services,Software Development,15/10/2014,94862,378,CIVICA UK LIMITED,A00006,7,2014
Allerdale Borough Council,15703,Supplies & Services,Carnegie Theatre,Call Charges,15/10/2014,94863,1215.88,BRITISH TELECOMMUNICATIONS,X00004,7,2014
Allerdale Borough Council,15502,Supplies & Services,Legal Services,Land Registry Fees,15/10/2014,94864,40,HM LAND REGISTRY,A00834,7,2014
Allerdale Borough Council,12201,Premises,Homelessness,Internal Maintenance,15/10/2014,94865,-273.43,DERWENT & SOLWAY,A00219,7,2014
Allerdale Borough Council,15101,Supplies & Services,Chief Executive,Equipment Costs,15/10/2014,94866,507,FLUID BRANDING,M00638,7,2014
Allerdale Borough Council,15501,Supplies & Services,Delivering Jobs and Growth,Consultants Fees,,94867,1350,LAND + PLACE LTD,A02050,7,2014
Allerdale Borough Council,15501,Supplies & Services,Delivering Jobs and Growth,Consultants Fees,15/10/2014,94868,2475,LAND + PLACE LTD,A02050,7,2014
Allerdale Borough Council,12202,Premises,Corporate Property Maintenance,Electrical Repairs and Service,15/10/2014,94869,1520,LED HUT LTD,A02053,7,2014
Allerdale Borough Council,10600,Employee Costs,Human Resources Pay Group,Budget-Training,15/10/2014,94870,876.9,NORTH WEST EMPLOYERS,A00139,7,2014
Allerdale Borough Council,15501,Supplies & Services,Delivering Jobs and Growth,Consultants Fees,05/11/2014,94871,900,LAND + PLACE LTD,A02050,7,2014
Allerdale Borough Council,15501,Supplies & Services,Planning and Development,Consultants Fees,05/11/2014,94872,900,KINGS CHAMBERS,A00348,7,2014
Allerdale Borough Council,15501,Supplies & Services,Street Cleansing,Consultants Fees,29/10/2014,94873,53,DUNDAS CHEMICAL CO (MOSSPARK),A00175,7,2014
Allerdale Borough Council,15101,Supplies & Services,Weekly Collection Support Scheme,Equipment Costs,05/11/2014,94874,1832.64,CRAEMER UK LTD,A01016,7,2014
Allerdale Borough Council,12201,Premises,Homelessness,Internal Maintenance,22/10/2014,94875,30,AA CARPETS LTD,C00031,7,2014
Allerdale Borough Council,15100,Supplies & Services,Benefits,"Budget-Equipment, Furniture & Materials",22/10/2014,94876,168,CENTRIC OFFICE SOLUTIONS,A00065,7,2014
Allerdale Borough Council,15811,Supplies & Services,IT Services,Software Maintenance,,94877,140,SAGE (UK) LTD,A01911,7,2014
Allerdale Borough Council,10401,Employee Costs,IT - New Initiatives,Agency Staff Costs,,94878,1137.5,HAYS SPECIALIST RECRUITMENT LTD,A00280,7,2014
Allerdale Borough Council,15550,Supplies & Services,Carnegie Theatre,General-Service Related Fees,29/10/2014,94879,45.92,TICKETS.COM LTD,A00371,7,2014
Allerdale Borough Council,15202,Supplies & Services,Carnegie Theatre,Bar Provision,22/10/2014,94880,725.23,CLASSIC DRINKS LIMITED,A00413,7,2014
Allerdale Borough Council,12303,Premises,Carnegie Theatre,Window Cleaning,22/10/2014,94881,39.14,J A LEE WINDOWS,A00051,7,2014
Allerdale Borough Council,15550,Supplies & Services,Carnegie Theatre,General-Service Related Fees,05/11/2014,94882,31.16,TICKETS.COM LTD,A00371,7,2014
Allerdale Borough Council,15601,Supplies & Services,Carnegie Theatre,Postage,,94883,201.02,BOOKER CASH & CARRY,A01419,7,2014
Allerdale Borough Council,16302,Supplies & Services,Members Services,Room Hire,,94884,113.1,CUMB RURAL ENTERPRISE AGENCY,A01640,7,2014
Allerdale Borough Council,10401,Employee Costs,Public Convenience Cleaning,Agency Staff Costs,22/10/2014,94885,187.32,COCKERMOUTH TOWN COUNCIL,A00586,7,2014
Allerdale Borough Council,12203,Premises,Corporate Property Maintenance,Plumbing and Heating Maintenance,22/10/2014,94886,126,O'CONNELL & BEAN (MECH&ELEC) LTD,C00078,7,2014
Allerdale Borough Council,16150,Supplies & Services,Legal Services,General Promotions,22/10/2014,94887,364.48,CUMBRIAN NEWSPAPERS LIMITED,A00869,7,2014
Allerdale Borough Council,14104,Transport,Public Convenience Cleaning,Repairs & Maintenance,22/10/2014,94888,89.93,FCC ENVIRONMENT SERVICES (FOCSA),A00085,7,2014
Allerdale Borough Council,51101,Capital Expenditure,New Leisure Facility,External Contractor Payments (Capital),22/10/2014,94889,42995.02,WILLMOTT DIXON CAPITAL WORKS LTD,C00127,7,2014
Allerdale Borough Council,15513,Supplies & Services,Carnegie Theatre,Subcontractors - General,05/11/2014,94890,206.25,Redacted information - included personal information ,A01510,7,2014
Allerdale Borough Council,15101,Supplies & Services,Homelessness,Equipment Costs,05/11/2014,94891,116.96,ARCO LIMITED - CARLISLE,A01448,7,2014
Allerdale Borough Council,15808,Supplies & Services,IT Services,Computer Consumables,22/10/2014,94892,265,PMD MAGNETICS,A01086,7,2014
Allerdale Borough Council,20304,Third Party Payments,Recycling,Contract Services-Recycling,22/10/2014,94893,375530.99,FCC ENVIRONMENT SERVICES (FOCSA),A00085,7,2014
Allerdale Borough Council,15550,Supplies & Services,Sports Development,General-Service Related Fees,,94894,24904,CUMBRIAN SPAA FOUNDATION LTD,A01868,7,2014
Allerdale Borough Council,15103,Supplies & Services,KMAG Enhancement Activity,Purchase of Materials,,94895,80,AZTEC SIGNS,A02010,7,2014
Allerdale Borough Council,10601,Employee Costs,Training,External Courses & Seminar Fees,,94896,175,PTYXIS ECOLOGY,A02093,7,2014
Allerdale Borough Council,15401,Supplies & Services,Planning and Development,General Stationery,22/10/2014,94897,441.9,HEATONS OFFICE SOLUTION (PREV LAKELAND/INTEGRITY),A00069,7,2014
Allerdale Borough Council,16150,Supplies & Services,Solway AONB Other Projects,General Promotions,22/10/2014,94898,120,WEST HOUSE,A02020,7,2014
Allerdale Borough Council,51101,Capital Expenditure,Sale Of Buildings,External Contractor Payments (Capital),29/10/2014,94899,1220,SINTONS LLP,A02084,7,2014
Allerdale Borough Council,12306,Premises,Public Convenience Cleaning,Legionella Inspections and Services,29/10/2014,94900,1132.97,RENTOKIL INITIAL UK LTD - WATERSAFE,A01790,7,2014
Allerdale Borough Council,16101,Supplies & Services,Planning and Development,Statutory Notices,22/10/2014,94901,525.7,CUMBRIA CC - 3C STUDIO,A00070,7,2014
Allerdale Borough Council,15203,Supplies & Services,Solway Coast AONB Core Funding,Catering Costs and Consumables,29/10/2014,94902,24.99,VIKING DIRECT,A00828,7,2014
Allerdale Borough Council,15101,Supplies & Services,Public Convenience Cleaning,Equipment Costs,22/10/2014,94903,730.37,INSTOCK (CHANDLERS),A00050,7,2014
Allerdale Borough Council,15101,Supplies & Services,Public Convenience Cleaning,Equipment Costs,29/10/2014,94904,55.93,INSTOCK (CHANDLERS),A00050,7,2014
Allerdale Borough Council,16150,Supplies & Services,Solway Wetlands Project,General Promotions,05/11/2014,94905,375,ASKHAM BRYAN COLLEGE,A01841,7,2014
Allerdale Borough Council,16150,Supplies & Services,Solway Wetlands Project,General Promotions,29/10/2014,94906,556,MTP MEDIA LTD,A02065,7,2014
Allerdale Borough Council,15103,Supplies & Services,KMAG Enhancement Activity,Purchase of Materials,05/11/2014,94907,151.06,YORKSHIRE PURCHASING ORGANISATION,A00747,7,2014
Allerdale Borough Council,14104,Transport,Off-street - Owned,Repairs & Maintenance,22/10/2014,94908,260.86,FCC ENVIRONMENT SERVICES (FOCSA),A00085,7,2014
Allerdale Borough Council,10401,Employee Costs,Housing Services Pay Group,Agency Staff Costs,22/10/2014,94909,840,TEDGEM INVESTMENTS LTD,A01962,7,2014
Allerdale Borough Council,15501,Supplies & Services,Sports & Leisure Centres,Consultants Fees,22/10/2014,94910,250,FMG CONSULTING LTD,A01721,7,2014
Allerdale Borough Council,10601,Employee Costs,Parks Development,External Courses & Seminar Fees,29/10/2014,94911,695,DUNLOP PLAYGROUND SERVICES,A00511,7,2014
Allerdale Borough Council,12307,Premises,Corporate Property Maintenance,Fixtures and Fittings,22/10/2014,94912,132.03,THYSSENKRUPP ELEVATOR UK LTD,C00072,7,2014
Allerdale Borough Council,15501,Supplies & Services,Planning and Development,Consultants Fees,,94913,750,CORNWALL ENVIRONMENTAL CONSULTANTS (CEC LTD),A02041,7,2014
Allerdale Borough Council,12402,Premises,Footways,Electricity,22/10/2014,94914,4958.77,N POWER,X00015,7,2014
Allerdale Borough Council,15203,Supplies & Services,Solway Coast AONB Core Funding,Catering Costs and Consumables,29/10/2014,94916,29.98,VIKING DIRECT,A00828,7,2014
Allerdale Borough Council,20102,Third Party Payments,Recycling,Horticulture (Obsolete),22/10/2014,94917,200.5,THOMPSONS PLANT HIRE LTD,A00262,7,2014
Allerdale Borough Council,20102,Third Party Payments,Recycling,Horticulture (Obsolete),22/10/2014,94918,-200.5,THOMPSONS PLANT HIRE LTD,A00262,7,2014
Allerdale Borough Council,15703,Supplies & Services,Corporate Property Maintenance,Call Charges,22/10/2014,94919,573.56,BRITISH TELECOMMUNICATIONS,X00004,7,2014
Allerdale Borough Council,12403,Premises,Corporate Property Maintenance,Gas,22/10/2014,94920,17.77,EON,X00016,7,2014
Allerdale Borough Council,12403,Premises,Corporate Property Maintenance,Gas,22/10/2014,94921,117.69,BRITISH GAS,X00039,7,2014
Allerdale Borough Council,12408,Premises,Corporate Property Maintenance,Water & Sewage,22/10/2014,94922,56.81,UNITED UTILITIES,X00011,7,2014
Allerdale Borough Council,12408,Premises,Corporate Property Maintenance,Water & Sewage,22/10/2014,94923,425.06,UNITED UTILITIES ,X00011,7,2014
Allerdale Borough Council,12408,Premises,Corporate Property Maintenance,Water & Sewage,22/10/2014,94924,263.26,UNITED UTILITIES ,X00011,7,2014
Allerdale Borough Council,15703,Supplies & Services,Corporate Property Maintenance,Call Charges,22/10/2014,94925,47.22,BRITISH TELECOMMUNICATIONS,X00004,7,2014
Allerdale Borough Council,15102,Supplies & Services,Off-street - Owned,Equipment Repair & Maintenance,22/10/2014,94926,17155.44,METRIC GROUP LTD,A00568,7,2014
Allerdale Borough Council,15603,Supplies & Services,Document Management Pay Group,Franking Machine Costs,29/10/2014,94927,300,THE MAILING ROOM (FP EXECUTIVE AGENCY LTD),A00733,7,2014
Allerdale Borough Council,15401,Supplies & Services,Document Management Pay Group,General Stationery,22/10/2014,94928,22.2,K&R BADGES LIMITED,A01328,7,2014
Allerdale Borough Council,12202,Premises,Public Convenience Cleaning,Electrical Repairs and Service,29/10/2014,94929,655.5,J & J ELECTRICAL (CUMBRIA) LTD,C00038,7,2014
Allerdale Borough Council,20101,Third Party Payments,Public Convenience Cleaning,Cleansing Contract,22/10/2014,94930,650,LINDOW HALL,A00165,7,2014
Allerdale Borough Council,15506,Supplies & Services,Environmental Protection,Professional Services,22/10/2014,94931,320,UNBLOCK CUMBRIA LTD,C00005,7,2014
Allerdale Borough Council,12101,Premises,Corporate Property Maintenance,External Maintenance & Decoration,22/10/2014,94932,145,THE CUMBRIA CLOCK CO LTD,A00061,7,2014
Allerdale Borough Council,15101,Supplies & Services,Homelessness,Equipment Costs,29/10/2014,94933,40,IMPACT HOUSING ASSOCIATION LTD,A00236,7,2014
Allerdale Borough Council,15101,Supplies & Services,Public Convenience Cleaning,Equipment Costs,,94934,14.28,WF HYGIENE & CLEANING SUPPLIES,A01794,7,2014
Allerdale Borough Council,15401,Supplies & Services,Document Management Pay Group,General Stationery,,94935,199,ANTALIS,A00122,7,2014
Allerdale Borough Council,12201,Premises,Corporate Property Maintenance,Internal Maintenance,22/10/2014,94936,198,DERWENT FLOORING & CEILING CO,C00041,7,2014
Allerdale Borough Council,15502,Supplies & Services,Legal Services,Land Registry Fees,,94937,31,HM LAND REGISTRY,A00505,7,2014
Allerdale Borough Council,12405,Premises,Homelessness,Rentals and Lease Charges,,94938,160,BARCLAYCARD COMMERCIAL,X00207,7,2014
Allerdale Borough Council,16101,Supplies & Services,Planning and Development,Statutory Notices,22/10/2014,94939,768.53,CUMBRIA CC - 3C STUDIO,A00070,7,2014
Allerdale Borough Council,16101,Supplies & Services,Planning and Development,Statutory Notices,22/10/2014,94940,464.43,CUMBRIA CC - 3C STUDIO,A00070,7,2014
Allerdale Borough Council,14105,Transport,Parking Services Pay Group,"Fuel, Lubricants & Consumables",,94941,466.16,BP OIL UK LTD,X00022,7,2014
Allerdale Borough Council,14105,Transport,Parking Services Pay Group,"Fuel, Lubricants & Consumables",,94942,275.75,BP OIL UK LTD,X00022,7,2014
Allerdale Borough Council,21150,Transfer Payments,Festivals & Events,General Grants,22/10/2014,94943,100,LOFTUS ASSOCIATES LTD,M00623,7,2014
Allerdale Borough Council,15812,Supplies & Services,IT Services,Software Development,22/10/2014,94944,1700,JEC PROFESSIONAL SERVICES LTD,A01984,7,2014
Allerdale Borough Council,15506,Supplies & Services,Communications and Marketing,Professional Services,22/10/2014,94945,1675,ELSWORTH COMMUNICATIONS,A01869,7,2014
Allerdale Borough Council,10401,Employee Costs,Planning and Development,Agency Staff Costs,22/10/2014,94946,472.49,ADECCO RECRUITMENT,A00188,7,2014
Allerdale Borough Council,10401,Employee Costs,Planning and Development,Agency Staff Costs,29/10/2014,94947,383.1,ADECCO RECRUITMENT,A00188,7,2014
Allerdale Borough Council,15101,Supplies & Services,Weekly Collection Support Scheme,Equipment Costs,,94948,3818,CRAEMER UK LTD,A01016,7,2014
Allerdale Borough Council,15101,Supplies & Services,Recycling,Equipment Costs,29/10/2014,94949,149,FIRPRESS PRINTERS,A00063,7,2014
Allerdale Borough Council,20102,Third Party Payments,Recycling,Horticulture (Obsolete),22/10/2014,94950,2213,THOMPSONS PLANT HIRE LTD,A00262,7,2014
Allerdale Borough Council,20102,Third Party Payments,Recycling,Horticulture (Obsolete),22/10/2014,94951,414.5,THOMPSONS PLANT HIRE LTD,A00262,7,2014
Allerdale Borough Council,15808,Supplies & Services,IT Services,Computer Consumables,,94952,40.49,INSIGHT DIRECT (UK) LTD,A00054,7,2014
Allerdale Borough Council,15502,Supplies & Services,Legal Services,Land Registry Fees,22/10/2014,94953,40,HM LAND REGISTRY,A00834,7,2014
Allerdale Borough Council,10600,Employee Costs,Training,Budget-Training,22/10/2014,94954,750,INNOVATION CENTRAL LTD,A02081,7,2014
Allerdale Borough Council,15508,Supplies & Services,Risk Management,Subscriptions,22/10/2014,94955,165,CIPFA,A00572,7,2014
Allerdale Borough Council,21150,Transfer Payments,Festivals & Events,General Grants,22/10/2014,94956,300,CUMBRIA FESTIVALS GROUP,A01988,7,2014
Allerdale Borough Council,16150,Supplies & Services,Solway Wetlands Project,General Promotions,22/10/2014,94957,50,Redacted information - included personal information ,M00643,7,2014
Allerdale Borough Council,54105,Capital Expenditure,Cluster of Empty Homes,Grants  Private Individuals (Capital),22/10/2014,94958,6960,Redacted information - included personal information ,M00642,7,2014
Allerdale Borough Council,54105,Capital Expenditure,Cluster of Empty Homes,Grants  Private Individuals (Capital),22/10/2014,94959,4968,Redacted information - included personal information ,M00642,7,2014
Allerdale Borough Council,54105,Capital Expenditure,Disabled Facilities Grants,Grants  Private Individuals (Capital),22/10/2014,94960,14780,Redacted information - included personal information ,X00196,7,2014
Allerdale Borough Council,54105,Capital Expenditure,Cluster of Empty Homes,Grants  Private Individuals (Capital),22/10/2014,94961,1125,Redacted information - included personal information ,X00230,7,2014
Allerdale Borough Council,54105,Capital Expenditure,Cluster of Empty Homes,Grants  Private Individuals (Capital),22/10/2014,94962,500,Redacted information - included personal information ,M00403,7,2014
Allerdale Borough Council,54105,Capital Expenditure,Disabled Facilities Grants,Grants  Private Individuals (Capital),22/10/2014,94963,1250,DOLPHIN STAIRLIFTS CUMBRIA,X00107,7,2014
Allerdale Borough Council,54105,Capital Expenditure,Disabled Facilities Grants,Grants  Private Individuals (Capital),22/10/2014,94964,9986.43,JOSEPH RIDLEY BUILDERS LTD,X00124,7,2014
Allerdale Borough Council,16102,Supplies & Services,Supporting Allerdale Town Centres,Regeneration Initiatives,22/10/2014,94965,8000,KESWICK T.C.,X00080,7,2014
Allerdale Borough Council,16150,Supplies & Services,Solway Wetlands Project,General Promotions,22/10/2014,94966,26.9,Redacted information - included personal information ,M00608,7,2014
Allerdale Borough Council,16150,Supplies & Services,Solway Coast AONB Core Funding,General Promotions,22/10/2014,94967,250,CULTERHAM HALL MAWBRAY,M00071,7,2014
Allerdale Borough Council,15506,Supplies & Services,Communications and Marketing,Professional Services,22/10/2014,94968,340,LAKES PR LIMITED,A01912,7,2014
Allerdale Borough Council,15405,Supplies & Services,Communications and Marketing,Use of External Printers,22/10/2014,94969,115,FIRPRESS PRINTERS,A00063,7,2014
Allerdale Borough Council,21150,Transfer Payments,Festivals & Events,General Grants,22/10/2014,94970,900,WIGTON TOWN COUNCIL,X00099,7,2014
Allerdale Borough Council,70104,VAT,VAT Control Account,VAT - 20%,29/10/2014,94971,1312.77,WORKINGTON PLAYGOERS,M00028,7,2014
Allerdale Borough Council,15405,Supplies & Services,Carnegie Theatre,Use of External Printers,29/10/2014,94972,1016.67,FIRPRESS PRINTERS,A00063,7,2014
Allerdale Borough Council,15506,Supplies & Services,Carnegie Theatre,Professional Services,29/10/2014,94973,65.01,APEX RADIO SYSTEMS LTD,A01931,7,2014
Allerdale Borough Council,16150,Supplies & Services,Solway Wetlands Project,General Promotions,29/10/2014,94974,299.17,RSPB,M00200,7,2014
Allerdale Borough Council,15202,Supplies & Services,Carnegie Theatre,Bar Provision,05/11/2014,94975,681.28,DRINKS EXPRESS,A01862,7,2014
Allerdale Borough Council,16150,Supplies & Services,Carnegie Theatre,General Promotions,29/10/2014,94976,656.67,EASBY ORWELL LTD,A00887,7,2014
Allerdale Borough Council,15101,Supplies & Services,Environmental Health Pay Group,Equipment Costs,05/11/2014,94977,3.5,K&R BADGES LIMITED,A01328,7,2014
Allerdale Borough Council,14101,Transport,Mayoral Services,Vehicle Leasing,29/10/2014,94978,40,ACE TAXIS,A01927,7,2014
Allerdale Borough Council,12402,Premises,Public Convenience Cleaning,Electricity,29/10/2014,94979,1192.16,UNITED UTILITIES,X00011,7,2014
Allerdale Borough Council,12402,Premises,Corporate Property Maintenance,Electricity,29/10/2014,94980,39.03,BRITISH GAS,X00039,7,2014
Allerdale Borough Council,15203,Supplies & Services,Solway Coast AONB Core Funding,Catering Costs and Consumables,29/10/2014,94981,-29.98,VIKING DIRECT,A00828,7,2014
Allerdale Borough Council,12408,Premises,Corporate Property Maintenance,Water & Sewage,29/10/2014,94982,13.74,UNITED UTILITIES,X00011,7,2014
Allerdale Borough Council,12408,Premises,Public Convenience Cleaning,Water & Sewage,29/10/2014,94983,55.06,UNITED UTILITIES ,X00011,7,2014
Allerdale Borough Council,15702,Supplies & Services,Corporate Property Maintenance,Line Rentals,29/10/2014,94984,73.15,BRITISH TELECOMMUNICATIONS,X00004,7,2014
Allerdale Borough Council,12305,Premises,Corporate Property Maintenance,Inspections and Services,29/10/2014,94985,1415.53,REFRIGERATION (MITTON) LTD,C00012,7,2014
Allerdale Borough Council,20108,Third Party Payments,Banking and Interest,Audit Commission,29/10/2014,94986,2300,AUDIT COMMISSION,A00002,7,2014
Allerdale Borough Council,15513,Supplies & Services,Carnegie Theatre,Subcontractors - General,29/10/2014,94987,231,R W AUDIO,C00059,7,2014
Allerdale Borough Council,16150,Supplies & Services,Carnegie Theatre,General Promotions,29/10/2014,94988,135,FIRPRESS PRINTERS,A00063,7,2014
Allerdale Borough Council,14101,Transport,Shared IT Services Pay Group,Vehicle Leasing,,94989,199,ARNOLD CLARK AUTOMOBILES LTD,A01551,7,2014
Allerdale Borough Council,12301,Premises,Carnegie Theatre,Security,29/10/2014,94990,503,CUMBRIAN SYSTEMS,C00062,7,2014
Allerdale Borough Council,15202,Supplies & Services,Carnegie Theatre,Bar Provision,,94991,212.08,MITCHELL KRAUSE BREWING LTD,A01861,7,2014
Allerdale Borough Council,12105,Premises,Public Convenience Cleaning,Vandalism Repairs,29/10/2014,94992,1256,Redacted information - included personal information ,C00008,7,2014
Allerdale Borough Council,15514,Supplies & Services,Carnegie Theatre,Public Entertainment,29/10/2014,94993,1000,BEYOND ETERNITY PROMOTIONS LTD,A02089,7,2014
Allerdale Borough Council,15202,Supplies & Services,Carnegie Theatre,Bar Provision,29/10/2014,94994,60.79,C.S. DRINKS LTD,A00005,7,2014
Allerdale Borough Council,15500,Supplies & Services,Disposal of Allerdale Sites,Budget-Services,,94995,555,MACDONALD & COMPANY FREELANCE LTD,A01947,7,2014
Allerdale Borough Council,12101,Premises,Corporate Property Maintenance,External Maintenance & Decoration,29/10/2014,94996,652.7,ROLAND HILL (PARSONBY) LTD,C00010,7,2014
Allerdale Borough Council,15604,Supplies & Services,Document Management Pay Group,Franking Machine refills,29/10/2014,95013,2.73,Redacted information - included personal information ,M00646,7,2014
Allerdale Borough Council,16150,Supplies & Services,Solway Wetlands Project,General Promotions,29/10/2014,95014,129.57,Redacted information - included personal information ,M00645,7,2014
Allerdale Borough Council,16350,Supplies & Services,Homelessness,Miscellaneous Expenses,29/10/2014,95015,500,Redacted information - included personal information ,M00644,7,2014
Allerdale Borough Council,54105,Capital Expenditure,Disabled Facilities Grants,Grants  Private Individuals (Capital),29/10/2014,95016,2704.79,JACOBS STOBBARTS LIMITED,C00139,7,2014
Allerdale Borough Council,16350,Supplies & Services,Homelessness,Miscellaneous Expenses,29/10/2014,95017,350,ID PROPERTIES,M00259,7,2014
Allerdale Borough Council,16350,Supplies & Services,Homelessness,Miscellaneous Expenses,29/10/2014,95018,150,Redacted information - included personal information ,M00246,7,2014
Allerdale Borough Council,70104,VAT,Input VAT,VAT - 20%,29/10/2014,95019,7805.68,WAOS,M00291,7,2014
Allerdale Borough Council,73102,Holding and Control Accounts,Capital Project Retentions,Holding Accounts General - Expenditure,29/10/2014,95020,32853,ENGINEERING (BARB) PIPEWORKS,A00903,7,2014
Allerdale Borough Council,15502,Supplies & Services,Legal Services,Land Registry Fees,,95021,51,HM LAND REGISTRY ,A00505,7,2014
Allerdale Borough Council,15502,Supplies & Services,Legal Services,Land Registry Fees,,95022,15,HM LAND REGISTRY,A00505,7,2014
Allerdale Borough Council,10203,Employee Costs,Leaders Services,Subsistence Allowance,,95023,3.9,BARCLAYCARD COMMERCIAL,X00207,7,2014
Allerdale Borough Council,15501,Supplies & Services,Revenue,Consultants Fees,29/10/2014,95024,10,HMCTS,M00432,7,2014
Allerdale Borough Council,12101,Premises,Corporate Property Maintenance,External Maintenance & Decoration,,95025,7156.06,CUMBRIA SUPERGLAZE,A00982,7,2014
Allerdale Borough Council,15501,Supplies & Services,Homelessness,Consultants Fees,29/10/2014,95026,30,MARYPORT HEALTH SERVICE,A00421,7,2014
Allerdale Borough Council,15101,Supplies & Services,Corporate Property Maintenance,Equipment Costs,,95027,59.97,ARCO LIMITED - CARLISLE,A01448,7,2014
Allerdale Borough Council,15104,Supplies & Services,Bereavement Services,Supplies for Resale,,95028,134,GRANART,A00644,7,2014
Allerdale Borough Council,20150,Third Party Payments,Parking Services Pay Group,General Partnership Service Fees,,95029,857,BRITISH PARKING ASSOCIATION,A00468,7,2014
Allerdale Borough Council,10401,Employee Costs,Housing Services Pay Group,Agency Staff Costs,29/10/2014,95030,836.43,TEDGEM INVESTMENTS LTD,A01962,7,2014
Allerdale Borough Council,12203,Premises,Public Convenience Cleaning,Plumbing and Heating Maintenance,29/10/2014,95031,1328,Redacted information - included personal information ,C00008,7,2014
Allerdale Borough Council,20113,Third Party Payments,West Cumbria Community Safety,Other Agencies,29/10/2014,95032,7000,THE POLICE & CRIME COMMISSIONER FOR CUMBRIA,M00443,7,2014
Allerdale Borough Council,15602,Supplies & Services,Electoral Registration,Business Reply Licences,29/10/2014,95033,1635.21,ROYAL MAIL LETTERS,X00021,7,2014
Allerdale Borough Council,12408,Premises,Corporate Property Maintenance,Water & Sewage,29/10/2014,95034,102.39,UNITED UTILITIES,X00011,7,2014
Allerdale Borough Council,12408,Premises,Corporate Property Maintenance,Water & Sewage,29/10/2014,95035,97.72,UNITED UTILITIES ,X00011,7,2014
Allerdale Borough Council,12402,Premises,Corporate Property Maintenance,Electricity,29/10/2014,95036,274.14,N POWER,X00015,7,2014
Allerdale Borough Council,12402,Premises,Corporate Property Maintenance,Electricity,29/10/2014,95037,6.12,N POWER,X00015,7,2014
Allerdale Borough Council,12402,Premises,Public Convenience Cleaning,Electricity,29/10/2014,95038,9.37,N POWER,X00015,7,2014
Allerdale Borough Council,12402,Premises,Public Convenience Cleaning,Electricity,29/10/2014,95039,46.91,N POWER,X00015,7,2014
Allerdale Borough Council,12101,Premises,Car Parks Inspection & Maintenance,External Maintenance & Decoration,,95040,6898.74,JOHN ELLIOTT LIMITED,C00023,7,2014
Allerdale Borough Council,12305,Premises,Corporate Property Maintenance,Inspections and Services,29/10/2014,95041,650,WEST COAST SURVEYS LTD,A00154,7,2014
Allerdale Borough Council,12101,Premises,Corporate Property Maintenance,External Maintenance & Decoration,29/10/2014,95042,20.96,EDMUNDSON ELECTRICAL LTD,A00304,7,2014
Allerdale Borough Council,12201,Premises,Corporate Property Maintenance,Internal Maintenance,29/10/2014,95043,700,DERWENT FLOORING & CEILING CO,C00041,7,2014
Allerdale Borough Council,15203,Supplies & Services,Members Services,Catering Costs and Consumables,,95044,58.5,MAGGIES BAKERY,A01685,7,2014
Allerdale Borough Council,20102,Third Party Payments,Recycling,Horticulture (Obsolete),05/11/2014,95045,3064.5,THOMPSONS PLANT HIRE LTD,A00262,7,2014
Allerdale Borough Council,20102,Third Party Payments,Recycling,Horticulture (Obsolete),29/10/2014,95047,293,THOMPSONS PLANT HIRE LTD,A00262,7,2014
Allerdale Borough Council,16003,Supplies & Services,Customer Services Pay Group,Security of Cash Movements,,95048,416.73,SECURITY PLUS LIMITED,A00503,7,2014
Allerdale Borough Council,81608,Balance Sheet,General Fund,Legal Provisions,29/10/2014,95049,50340.07,BELL PARK KERRIDGE,A01759,7,2014
Allerdale Borough Council,15103,Supplies & Services,Arts Development,Purchase of Materials,29/10/2014,95050,495,HONISTER SLATE MINE,A01700,7,2014
Allerdale Borough Council,21150,Transfer Payments,Festivals & Events,General Grants,29/10/2014,95052,25,BELFAGEN WOMENS MORRIS,M00647,7,2014
Allerdale Borough Council,15550,Supplies & Services,Members Services,General-Service Related Fees,29/10/2014,95053,3000,CUMBRIA LOCAL COUNCILS ASSOCIATION,M00302,7,2014
Allerdale Borough Council,54105,Capital Expenditure,Disabled Facilities Grants,Grants  Private Individuals (Capital),29/10/2014,95054,2574,JOSEPH RIDLEY BUILDERS LTD,X00124,7,2014
Allerdale Borough Council,15101,Supplies & Services,Homelessness,Equipment Costs,29/10/2014,95055,61.9,ALLERDALE BOROUGH COUNCIL,X00034,7,2014
Allerdale Borough Council,10401,Employee Costs,IT - New Initiatives,Agency Staff Costs,,95056,975,HAYS SPECIALIST RECRUITMENT LTD,A00280,7,2014
Allerdale Borough Council,10601,Employee Costs,Shared IT Services Pay Group,External Courses & Seminar Fees,,95057,584.58,BARCLAYCARD COMMERCIAL ,X00207,7,2014
Allerdale Borough Council,15303,Supplies & Services,Food and Occupational Health,Laundry,05/11/2014,95058,99.05,BERENDSEN UK LTD,A00027,7,2014
Allerdale Borough Council,12305,Premises,Corporate Property Maintenance,Inspections and Services,,95059,190,DORMA UK LTD,A01349,7,2014
Allerdale Borough Council,15501,Supplies & Services,Environmental Protection,Consultants Fees,,95060,532.9,UNITED UTILITIES PLC,A01657,7,2014
Allerdale Borough Council,10401,Employee Costs,IT - New Initiatives,Agency Staff Costs,,95061,975,HAYS SPECIALIST RECRUITMENT LTD,A00280,7,2014
Allerdale Borough Council,12201,Premises,Corporate Property Maintenance,Internal Maintenance,05/11/2014,95062,287.5,RAFFERTY DECORATING SERVICES LTD,C00117,7,2014
Allerdale Borough Council,12302,Premises,Solway Coast AONB Core Funding,Building Cleaning,05/11/2014,95063,83.8,ORIAN SOLUTIONS LTD,A01814,7,2014
Allerdale Borough Council,15904,Supplies & Services,Members Services,Training,05/11/2014,95064,2750,STRATEGIC MARINE SERVICE,A00924,7,2014
Allerdale Borough Council,15103,Supplies & Services,Members Services,Purchase of Materials,,95065,3.5,K&R BADGES LIMITED,A01328,7,2014
Allerdale Borough Council,16350,Supplies & Services,Chief Executive,Miscellaneous Expenses,,95066,12,FIRPRESS PRINTERS,A00063,7,2014
Allerdale Borough Council,12306,Premises,Corporate Property Maintenance,Legionella Inspections and Services,,95067,75,RENTOKIL INITIAL UK LTD - WATERSAFE,A01790,7,2014
Allerdale Borough Council,15101,Supplies & Services,Homelessness,Equipment Costs,,95068,21.64,ARCO LIMITED - CARLISLE,A01448,7,2014
Allerdale Borough Council,10600,Employee Costs,Training,Budget-Training,05/11/2014,95069,140,WHITEHEADS SOLICITORS LTD,A02088,7,2014
Allerdale Borough Council,75103,Holding and Control Accounts,Payroll Suspense Account,PAYROLL October 14 Travel & Subsistence  ,,,,INLAND REVENUE,X00038,7,2014
